bitfinex/quotes_SOLUSD_20240620
["timestamp","ask_amount","ask_price","bid_price","bid_amount"]
[1718885274915,17.8864,139.78,139.69,7.1585]
[1718885275113,7.1565,139.74,139.69,7.1585]
[1718885276311,45.0,139.77,139.67,17.8992]
[1718885276312,7.1557,139.75,139.7,7.1579]
[1718885277299,7.1563,139.74,139.69,7.1585]
[1718885278003,7.1557,139.75,139.7,7.1579]
[1718885278318,7.1562,139.74,139.7,7.1581]
[1718885278510,45.0,139.77,139.7,7.1581]
[1718885278699,7.1562,139.74,139.69,7.1585]
[1718885279088,7.1567,139.73,139.68,7.159]
[1718885279289,0.17,139.76,139.66,0.17]
[1718885279503,7.1567,139.73,139.68,7.1589]
[1718885280414,7.1563,139.74,139.69,7.1586]
[1718885282403,7.1557,139.75,139.7,7.158]
[1718885282725,20.0,139.74,139.71,7.1574]
[1718885283415,20.0,139.74,139.65,22.6605]
[1718885283416,7.1585,139.7,139.65,22.6605]
[1718885283619,17.8917,139.73,139.63,7.1614]
[1718885283915,20.0,139.72,139.61,22.9238]
[1718885284215,7.1582,139.7,139.65,7.1604]
[1718885284514,20.0,139.69,139.65,7.1604]
[1718885285198,27.1587,139.69,139.64,7.1611]
[1718885285400,7.1595,139.68,139.63,7.1615]
[1718885285906,20.0,139.69,139.62,7.162]
[1718885285907,7.1597,139.67,139.62,7.162]
[1718885287120,20.0,139.69,139.61,40.8305]
[1718885287303,7.1585,139.7,139.65,7.1603]
[1718885287500,20.0,139.69,139.65,7.1603]
[1718885288021,7.1574,139.72,139.67,7.1596]
[1718885288220,20.0,139.71,139.64,0.17]
[1718885288399,20.0,139.71,139.64,0.68]
[1718885288600,27.158,139.71,139.66,7.1601]
[1718885288796,20.0,139.71,139.68,7.1591]
[1718885289000,7.1572,139.72,139.67,7.1595]
[1718885289215,7.1576,139.71,139.67,7.1595]
[1718885289401,7.1576,139.71,139.66,7.16]
[1718885289609,15.7268,139.74,139.64,0.68]
[1718885289610,7.1573,139.72,139.67,7.1597]
[1718885290306,7.1573,139.72,139.64,0.68]
[1718885290307,50.73629842,139.74,139.64,0.17]
[1718885290509,17.8929,139.72,139.61,48.8038]
[1718885290704,7.1584,139.7,139.65,7.1606]
[1718885291108,7.1584,139.7,139.61,66.7096]
[1718885291109,7.1592,139.68,139.61,66.7096]
[1718885291311,7.1588,139.69,139.64,7.1612]
[1718885291898,7.1582,139.7,139.65,7.1606]
[1718885292095,7.1582,139.7,139.66,7.1602]
[1718885292300,0.68,139.73,139.61,48.8038]
[1718885292498,65.68,139.73,139.62,0.68]
[1718885292711,7.1586,139.7,139.65,7.1605]
[1718885294027,20.0,139.73,139.7,7.1579]
[1718885294199,20.0,139.73,139.66,0.17]
[1718885294200,20.0,139.73,139.65,0.17]
[1718885294533,7.1572,139.72,139.68,7.1591]
[1718885294707,7.1568,139.73,139.68,7.1591]
[1718885294907,7.1571,139.72,139.68,7.1591]
[1718885295111,20.0,139.75,139.7,7.1581]
[1718885295304,7.156,139.75,139.7,7.1581]
[1718885295609,25.57240158,139.77,139.69,7.1585]
[1718885295610,7.1562,139.74,139.69,7.1585]
[1718885296025,7.1571,139.72,139.67,7.1595]
[1718885296319,7.1571,139.72,139.68,7.1592]
[1718885296918,7.1568,139.73,139.68,7.1592]
[1718885297229,7.1572,139.72,139.67,7.1595]
[1718885297618,7.1566,139.73,139.68,7.1589]
[1718885298707,7.1563,139.74,139.69,7.1586]
[1718885299226,55.68154205,139.78,139.68,6.0951]
[1718885299227,47.68674205,139.78,139.68,6.0951]
[1718885299529,23.29189842,139.79,139.75,7.1555]
[1718885299530,20.0,139.77,139.75,7.1555]
[1718885299740,20.0,139.77,139.74,7.1558]
[1718885299907,20.0,139.78,139.75,7.1555]
[1718885300232,15.3034,139.82,139.72,17.8928]
[1718885300233,27.1536,139.79,139.74,7.156]
[1718885300927,27.1536,139.79,139.72,17.8928]
[1718885300928,20.0,139.79,139.72,17.8928]
[1718885301137,22.4554,139.82,139.77,7.1544]
[1718885301315,20.0,139.81,139.77,7.1544]
[1718885301515,7.152,139.82,139.77,7.1544]
[1718885302033,17.11809842,139.83,139.75,6.5694]
[1718885302232,17.11809842,139.83,139.76,0.17]
[1718885302418,7.1511,139.84,139.79,7.1534]
[1718885302605,15.7995,139.86,139.76,0.17]
[1718885302803,7.1521,139.82,139.77,7.1545]
[1718885303034,7.1522,139.82,139.77,7.1545]
[1718885303632,7.1526,139.81,139.76,7.155]
[1718885304106,7.1516,139.83,139.78,7.154]
[1718885304307,33.6745,139.86,139.75,6.5694]
[1718885304537,20.0,139.85,139.77,0.17]
[1718885304715,7.1511,139.84,139.79,7.1535]
[1718885304913,20.0,139.83,139.79,7.1535]
[1718885305237,7.151,139.84,139.79,7.1532]
[1718885305415,6.2945,139.87,139.77,0.17]
[1718885305619,6.2945,139.87,139.75,24.4584]
[1718885305620,7.1542,139.78,139.75,6.5694]
[1718885305831,17.8772,139.85,139.75,6.5694]
[1718885306011,20.0,139.84,139.75,6.5694]
[1718885306338,7.152,139.82,139.77,7.1544]
[1718885306527,7.1526,139.81,139.76,7.1549]
[1718885306909,7.1522,139.82,139.77,7.1545]
[1718885308119,7.1516,139.83,139.78,7.1539]
[1718885308325,7.1515,139.83,139.78,7.1538]
[1718885308537,6.2945,139.87,139.76,18.0565]
[1718885308836,7.1508,139.85,139.8,7.1529]
[1718885309039,27.1502,139.86,139.8,7.1529]
[1718885309332,7.1505,139.85,139.8,7.1529]
[1718885309515,27.1501,139.86,139.81,7.1524]
[1718885309727,20.0,139.86,139.78,0.17]
[1718885309907,20.0,139.86,139.77,0.34]
[1718885310113,20.0,139.86,139.78,0.17]
[1718885310313,27.1489,139.88,139.82,16.0168]
[1718885310515,7.1497,139.87,139.82,16.0168]
[1718885310710,7.15,139.86,139.82,16.0168]
[1718885311214,7.1505,139.85,139.82,16.0168]
[1718885311413,7.1505,139.85,139.8,7.1528]
[1718885311636,17.8725,139.88,139.79,15.5811]
[1718885311637,7.1501,139.86,139.81,7.1524]
[1718885311836,7.1496,139.87,139.82,7.1519]
[1718885312145,20.0,139.89,139.82,6.1656]
[1718885312322,20.0,139.9,139.82,6.1656]
[1718885312522,7.1492,139.88,139.83,7.1512]
[1718885313131,7.1486,139.89,139.84,7.1509]
[1718885313521,20.0,139.9,139.83,0.51]
[1718885313736,7.148,139.9,139.84,0.17]
[1718885314031,7.148,139.9,139.84,0.51]
[1718885314227,7.148,139.9,139.85,7.1502]
[1718885314522,7.1474,139.91,139.86,7.1497]
[1718885314923,7.1481,139.9,139.85,7.1504]
[1718885315127,7.1476,139.91,139.86,7.1499]
[1718885315543,6.2052,139.93,139.85,0.17]
[1718885315734,7.1477,139.91,139.86,7.1497]
[1718885315942,7.147,139.92,139.87,7.1493]
[1718885316147,20.0,139.91,139.87,7.1493]
[1718885317154,7.147,139.92,139.87,7.1493]
[1718885317450,7.1457,139.95,139.9,7.1476]
[1718885318255,7.145,139.96,139.91,7.1471]
[1718885318557,14.8992625,139.98,139.89,0.17]
[1718885318862,6.1999,140.0,139.89,0.51]
[1718885319062,6.1999,140.0,139.9,0.17]
[1718885319543,7.1449,139.96,139.91,7.1472]
[1718885319936,7.1443,139.98,139.91,0.17]
[1718885320142,7.1447,139.97,139.92,7.1467]
[1718885320345,7.1449,139.96,139.91,7.6572]
[1718885321044,7.144,139.98,139.93,7.1463]
[1718885321249,17.8583,140.0,139.91,0.51]
[1718885321562,20.0,139.99,139.91,0.51]
[1718885321757,17.8599,139.98,139.91,0.17]
[1718885321951,20.0,139.97,139.88,6.1064]
[1718885322134,27.1445,139.97,139.92,7.1464]
[1718885322338,20.0,139.97,139.88,6.1064]
[1718885322636,7.1452,139.96,139.91,7.1473]
[1718885323050,7.1447,139.97,139.92,7.1467]
[1718885323258,7.1449,139.96,139.91,7.1472]
[1718885323642,7.1445,139.97,139.92,7.1468]
[1718885324059,7.144,139.98,139.93,7.1464]
[1718885324255,37.8572,140.0,139.9,0.17]
[1718885324471,7.1447,139.97,139.92,7.1467]
[1718885325262,7.144,139.98,139.93,7.1463]
[1718885325438,7.1444,139.97,139.92,7.1467]
[1718885326337,7.1444,139.97,139.92,23.432]
[1718885327360,7.144,139.98,139.93,7.1463]
[1718885327741,7.144,139.98,139.92,16.2853]
[1718885327742,7.1444,139.97,139.92,23.432]
[1718885328041,7.1452,139.96,139.92,16.2853]
[1718885328365,7.1445,139.97,139.92,23.4321]
[1718885328741,7.1439,139.98,139.93,7.146]
[1718885329448,20.0,140.01,139.92,16.2853]
[1718885329761,20.0,140.01,139.93,0.34]
[1718885329762,7.1444,139.97,139.93,0.34]
[1718885329967,7.144,139.98,139.93,7.3163]
[1718885330153,7.144,139.98,139.93,7.1463]
[1718885330467,7.46693003,140.0,139.92,16.2853]
[1718885330660,20.0,139.99,139.92,16.2853]
[1718885331060,7.1441,139.98,139.93,7.1463]
[1718885331445,7.1445,139.97,139.92,23.4321]
[1718885332141,7.144,139.98,139.93,7.1463]
[1718885334050,7.1458,139.95,139.9,7.1479]
[1718885334250,38.1987,139.99,139.89,15.4293]
[1718885334251,0.17,139.98,139.89,15.4293]
[1718885334448,7.1462,139.94,139.89,22.5774]
[1718885334647,7.1456,139.95,139.9,7.1479]
[1718885334846,7.1456,139.95,139.89,15.4293]
[1718885334847,20.0,139.94,139.89,15.4293]
[1718885335148,7.1467,139.93,139.88,13.255]
[1718885335549,7.46693003,140.0,139.88,31.9864]
[1718885335771,65.0,139.99,139.88,6.1064]
[1718885335945,90.88,139.99,139.88,6.1064]
[1718885336673,7.1454,139.95,139.9,7.1475]
[1718885336845,20.0,139.99,139.88,6.1064]
[1718885337047,7.144,139.98,139.93,7.146]
[1718885337245,20.0,139.97,139.93,7.146]
[1718885337650,27.1447,139.97,139.91,7.1471]
[1718885337859,20.0,139.97,139.91,7.1471]
[1718885338049,20.0,139.99,139.91,7.1471]
[1718885338394,20.0,139.99,139.89,0.17]
[1718885338543,20.0,139.99,139.89,0.51]
[1718885338860,20.0,139.99,139.9,0.17]
[1718885339055,7.1439,139.98,139.93,7.1463]
[1718885339665,7.1452,139.96,139.9,0.51]
[1718885339875,7.1452,139.96,139.91,7.1474]
[1718885340166,7.1452,139.96,139.9,7.6577]
[1718885340377,7.1454,139.95,139.88,6.1064]
[1718885340580,7.1454,139.95,139.89,0.34]
[1718885340962,7.1454,139.95,139.9,7.1475]
[1718885341364,7.146,139.94,139.89,7.1482]
[1718885341679,7.146,139.94,139.89,7.1481]
[1718885341862,17.8598,139.98,139.91,7.1474]
[1718885341863,7.1453,139.96,139.91,7.1474]
[1718885342179,7.1454,139.95,139.9,7.1477]
[1718885342380,17.8598,139.98,139.9,7.1477]
[1718885342682,7.1457,139.95,139.9,7.1477]
[1718885342849,7.146,139.94,139.89,7.1483]
[1718885343352,20.68,139.99,139.87,7.1493]
[1718885343353,7.147,139.92,139.87,7.1493]
[1718885343566,16.4746,139.96,139.86,34.2763]
[1718885343878,7.1459,139.94,139.89,7.1479]
[1718885344453,7.147,139.92,139.87,7.149]
[1718885344691,7.1474,139.91,139.86,23.5525]
[1718885344874,7.1474,139.91,139.87,7.1494]
[1718885345070,7.1474,139.91,139.86,16.4026]
[1718885345383,7.1474,139.91,139.87,7.1494]
[1718885345579,7.1474,139.91,139.86,23.5524]
[1718885345758,7.1471,139.92,139.87,7.1494]
[1718885345959,7.1465,139.93,139.89,7.1484]
[1718885346164,20.0,139.92,139.89,7.1484]
[1718885346382,7.1461,139.94,139.89,7.1484]
[1718885346688,7.1474,139.91,139.87,7.1494]
[1718885346868,17.8643,139.95,139.86,16.4026]
[1718885347191,7.1466,139.93,139.86,16.4026]
[1718885347373,20.0,139.94,139.86,16.4026]
[1718885347374,7.1457,139.95,139.9,7.1478]
[1718885347560,7.1457,139.95,139.87,0.17]
[1718885347561,16.4746,139.96,139.89,7.1482]
[1718885347766,7.1459,139.94,139.89,7.1482]
[1718885347967,7.1464,139.93,139.89,7.1482]
[1718885348778,7.1471,139.92,139.87,7.1493]
[1718885349272,7.1475,139.91,139.86,23.5524]
[1718885350086,7.1501,139.86,139.81,13.2977]
[1718885350286,22.2285,139.9,139.81,6.1455]
[1718885350287,17.8713,139.89,139.81,6.1455]
[1718885350488,17.8754,139.86,139.76,21.69695192]
[1718885350792,17.8754,139.86,139.79,7.1533]
[1718885350793,7.151,139.84,139.79,7.1533]
[1718885351291,20.0,139.85,139.76,16.0887]
[1718885351493,18.2177,139.84,139.76,16.0887]
[1718885351671,20.0,139.83,139.76,16.0887]
[1718885352072,20.0,139.83,139.77,7.1544]
[1718885352073,7.1522,139.82,139.77,7.1544]
[1718885352288,7.152,139.82,139.77,7.1544]
[1718885353187,7.1525,139.81,139.76,16.0887]
[1718885353806,18.0506,139.82,139.73,15.1994]
[1718885353983,7.1544,139.78,139.73,15.1994]
[1718885354305,7.1549,139.77,139.72,7.157]
[1718885354995,20.0,139.76,139.69,21.6602]
[1718885355204,7.1557,139.75,139.7,7.158]
[1718885355399,20.0,139.76,139.69,21.6602]
[1718885355608,7.1547,139.77,139.72,7.157]
[1718885355927,20.17,139.79,139.69,21.6602]
[1718885355928,20.0,139.76,139.71,7.1576]
[1718885356208,27.1554,139.76,139.71,7.1576]
[1718885356398,20.0,139.76,139.71,7.1576]
[1718885356703,20.0,139.76,139.69,21.6602]
[1718885356704,20.0,139.76,139.72,7.157]
[1718885356903,20.0,139.77,139.72,7.157]
[1718885357207,20.0,139.77,139.73,7.1566]
[1718885357505,27.1546,139.77,139.72,7.157]
[1718885358212,27.1546,139.77,139.71,7.1574]
[1718885359115,7.1553,139.76,139.71,7.1574]
[1718885359412,20.0,139.77,139.69,21.6602]
[1718885359413,7.1556,139.75,139.7,7.158]
[1718885359909,20.0,139.77,139.72,7.1568]
[1718885360294,20.0,139.77,139.73,7.1566]
[1718885360614,7.1551,139.76,139.71,7.1575]
[1718885360787,27.1548,139.77,139.71,7.1575]
[1718885361596,7.1551,139.76,139.71,7.1575]
[1718885361797,7.1558,139.75,139.7,7.158]
[1718885361996,20.0,139.77,139.69,15.1994]
[1718885362212,7.1568,139.73,139.69,15.1994]
[1718885362422,7.1564,139.74,139.69,7.1586]
[1718885363926,7.1558,139.75,139.7,7.1581]
[1718885364085,20.0,139.77,139.66,21.9046]
[1718885364292,7.1562,139.74,139.69,7.1582]
[1718885364514,45.17,139.76,139.66,21.9046]
[1718885364689,20.0,139.75,139.66,21.9046]
[1718885365008,7.1566,139.73,139.68,7.1589]
[1718885365510,7.1562,139.74,139.69,7.1586]
[1718885365695,20.0,139.73,139.69,7.1586]
[1718885366595,20.0,139.73,139.63,34.0956]
[1718885366802,7.1576,139.71,139.66,7.1598]
[1718885367003,20.0,139.73,139.65,7.1605]
[1718885367004,7.1582,139.7,139.65,7.1605]
[1718885367939,20.0,139.69,139.6,16.5407]
[1718885368100,20.0,139.69,139.62,7.1619]
[1718885368422,7.1595,139.68,139.63,7.1617]
[1718885368921,27.1588,139.69,139.64,7.1612]
[1718885369622,20.0,139.69,139.6,16.5407]
[1718885369797,7.1607,139.65,139.6,7.1631]
[1718885369999,16.4024,139.68,139.6,7.1631]
[1718885370197,7.1604,139.66,139.6,7.1631]
[1718885370427,7.1604,139.66,139.61,7.1626]
[1718885370800,0.17,139.67,139.56,47.428]
[1718885370995,7.1608,139.65,139.6,7.1629]
[1718885371508,0.68,139.67,139.61,7.1624]
[1718885371509,0.17,139.67,139.61,7.1624]
[1718885371706,0.17,139.67,139.6,7.1631]
[1718885371707,20.0,139.67,139.6,7.1631]
[1718885371908,20.0,139.67,139.59,18.0795]
[1718885372108,20.0,139.67,139.6,0.51]
[1718885372311,20.0,139.67,139.59,18.0795]
[1718885372312,20.0,139.67,139.61,7.1626]
[1718885372730,7.1605,139.66,139.61,7.1626]
[1718885373027,27.1598,139.67,139.62,7.1622]
[1718885373327,20.0,139.67,139.63,7.1616]
[1718885373825,20.0,139.67,139.62,7.162]
[1718885374011,20.0,139.67,139.63,7.1613]
[1718885375122,20.0,139.67,139.62,7.162]
[1718885375324,20.0,139.67,139.63,7.1616]
[1718885375620,20.0,139.67,139.61,7.1626]
[1718885375621,27.1597,139.67,139.61,7.1626]
[1718885375827,27.1599,139.67,139.62,7.1621]
[1718885376202,7.1615,139.64,139.59,7.1636]
[1718885376398,7.1615,139.64,139.56,39.4605]
[1718885376399,7.1614,139.64,139.56,39.4605]
[1718885376629,7.1621,139.63,139.57,7.1643]
[1718885376931,7.1621,139.63,139.58,7.1642]
[1718885377111,27.1624,139.62,139.57,7.1647]
[1718885377315,7.1628,139.61,139.56,7.165]
[1718885377520,27.1624,139.62,139.57,7.1648]
[1718885377715,20.0,139.62,139.58,7.1643]
[1718885378029,27.1623,139.62,139.57,7.1647]
[1718885378706,20.0,139.62,139.57,7.1646]
[1718885378905,27.1624,139.62,139.57,7.1646]
[1718885380228,20.0,139.62,139.55,18.0834]
[1718885380404,20.0,139.63,139.56,0.51]
[1718885380601,20.0,139.63,139.59,7.1635]
[1718885380828,20.0,139.63,139.58,7.1641]
[1718885381332,20.0,139.63,139.59,7.1636]
[1718885381906,20.0,139.63,139.53,58.9094]
[1718885382105,7.1626,139.62,139.57,7.1646]
[1718885382323,7.1624,139.62,139.56,7.1653]
[1718885382829,7.1628,139.61,139.56,7.1653]
[1718885384011,23.7245,139.62,139.57,7.1648]
[1718885384412,7.1628,139.61,139.56,7.1652]
[1718885385020,23.7245,139.62,139.57,7.1648]
[1718885385520,23.7245,139.62,139.56,7.1651]
[1718885385715,7.1629,139.61,139.56,7.1651]
[1718885385937,23.7246,139.62,139.57,7.1648]
[1718885386114,20.0,139.61,139.56,7.1651]
[1718885387007,20.0,139.61,139.56,0.17]
[1718885387221,20.0,139.64,139.56,0.34]
[1718885387423,27.1617,139.64,139.59,7.1637]
[1718885387842,20.0,139.64,139.56,0.34]
[1718885388030,6.5541,139.65,139.58,0.17]
[1718885388236,15.7604,139.66,139.61,7.1624]
[1718885388237,22.9206,139.66,139.61,7.1624]
[1718885388415,20.0,139.65,139.59,17.9095]
[1718885388619,7.1613,139.64,139.59,7.1637]
[1718885388822,27.1609,139.65,139.6,7.1632]
[1718885391920,7.1619,139.63,139.58,7.1642]
[1718885392120,20.0,139.65,139.56,0.17]
[1718885392427,7.1623,139.62,139.57,7.1647]
[1718885392628,37.9019,139.65,139.58,7.1642]
[1718885392629,7.1618,139.63,139.58,7.1642]
[1718885392819,37.9019,139.65,139.59,7.1635]
[1718885392820,7.1613,139.64,139.59,7.1635]
[1718885393352,20.0,139.65,139.56,18.083]
[1718885393353,7.1618,139.63,139.58,7.1642]
[1718885393641,7.1618,139.63,139.59,7.1638]
[1718885393835,7.1618,139.63,139.56,18.083]
[1718885394049,7.1618,139.63,139.58,7.1641]
[1718885394538,7.1623,139.62,139.58,7.1641]
[1718885394739,7.1623,139.62,139.57,7.1647]
[1718885394923,7.1628,139.61,139.55,0.51]
[1718885395318,7.1628,139.61,139.56,7.165]
[1718885395538,24.3,139.62,139.53,15.1122]
[1718885395739,7.1645,139.58,139.53,22.279]
[1718885395918,7.1639,139.59,139.54,7.166]
[1718885397437,7.1634,139.6,139.55,7.1657]
[1718885397733,20.0,139.59,139.53,15.1122]
[1718885398142,27.1642,139.59,139.54,7.1662]
[1718885398523,27.1642,139.59,139.55,7.1658]
[1718885399248,20.0,139.59,139.56,7.1652]
[1718885399410,20.0,139.6,139.57,7.1647]
[1718885399614,27.1628,139.61,139.56,7.1651]
[1718885399836,7.1633,139.6,139.55,7.1656]
[1718885400131,20.0,139.61,139.54,0.17]
[1718885400346,20.0,139.61,139.54,0.68]
[1718885400548,7.1634,139.6,139.55,7.1655]
[1718885400721,27.1629,139.61,139.56,7.1652]
[1718885401241,7.1633,139.6,139.55,7.1656]
[1718885401438,27.1629,139.61,139.56,7.1653]
[1718885402037,7.1634,139.6,139.55,7.1657]
[1718885403657,7.1608,139.65,139.55,0.17]
[1718885403824,29.42186641,139.66,139.55,18.2538]
[1718885403825,7.1618,139.63,139.55,18.2538]
[1718885404023,21.9329,139.66,139.59,7.1634]
[1718885404217,20.0,139.65,139.58,7.1642]
[1718885404538,20.0,139.65,139.56,0.34]
[1718885404715,20.0,139.65,139.57,7.1646]
[1718885404716,7.1627,139.62,139.57,7.1646]
[1718885405552,7.1618,139.63,139.58,7.1643]
[1718885405727,7.1613,139.64,139.59,7.1636]
[1718885406131,27.1609,139.65,139.6,7.1632]
[1718885406816,7.1614,139.64,139.59,7.1637]
[1718885407017,20.0,139.65,139.53,33.0282]
[1718885407345,7.1642,139.59,139.54,7.166]
[1718885407515,7.1635,139.6,139.55,7.1658]
[1718885408728,0.17,139.61,139.49,39.2443]
[1718885408942,7.1649,139.57,139.52,7.167]
[1718885409324,7.1649,139.57,139.53,7.1668]
[1718885409845,7.164,139.59,139.54,7.1663]
[1718885410033,21.8676,139.6,139.49,39.2443]
[1718885410034,20.0,139.58,139.55,7.1658]
[1718885410346,15.502,139.63,139.51,0.17]
[1718885410550,15.502,139.63,139.54,0.17]
[1718885410751,27.1627,139.62,139.57,7.1646]
[1718885410929,27.1627,139.62,139.54,0.68]
[1718885410930,27.1627,139.62,139.54,18.5959]
[1718885411136,7.1609,139.65,139.6,7.1632]
[1718885411344,20.0,139.64,139.6,7.1632]
[1718885411541,15.502,139.66,139.62,7.1622]
[1718885411749,24.29255638,139.69,139.64,7.1608]
[1718885411928,7.1601,139.67,139.62,7.1622]
[1718885412343,27.1592,139.68,139.63,7.1616]
[1718885413154,20.0,139.68,139.64,7.1612]
[1718885413332,7.1588,139.69,139.64,7.1612]
[1718885413938,7.1588,139.69,139.63,7.1615]
[1718885414249,7.1588,139.69,139.6,7.3328]
[1718885414250,7.1608,139.65,139.6,7.3328]
[1718885414452,7.1608,139.65,139.6,7.1628]
[1718885414652,7.1613,139.64,139.59,7.1636]
[1718885414826,7.1609,139.65,139.6,7.1632]
[1718885415352,17.15324082,139.69,139.62,7.1622]
[1718885415353,7.1598,139.67,139.62,7.1622]
[1718885415549,7.1598,139.67,139.57,18.2509]
[1718885415550,7.1592,139.68,139.63,7.1615]
[1718885415850,5.81952378,139.7,139.6,0.17]
[1718885416045,7.1605,139.66,139.61,7.1626]
[1718885417854,7.1609,139.65,139.6,7.1632]
[1718885418228,0.17,139.69,139.59,17.9093]
[1718885418555,65.68,139.7,139.6,0.68]
[1718885418728,7.1601,139.67,139.62,7.1619]
[1718885419053,20.0,139.66,139.59,17.9093]
[1718885419654,7.1602,139.66,139.61,7.1623]
[1718885419828,7.1599,139.67,139.62,7.1622]
[1718885420030,20.0,139.66,139.62,7.1622]
[1718885420250,20.0,139.66,139.58,0.68]
[1718885420649,20.0,139.68,139.58,0.68]
[1718885420964,22.86358756,139.71,139.63,22.0038]
[1718885421132,5.71034674,139.71,139.68,7.1591]
[1718885421333,7.48596198,139.71,139.68,7.1591]
[1718885421523,7.48596198,139.71,139.69,7.1586]
[1718885421731,32.68704082,139.74,139.7,7.1581]
[1718885422041,20.0,139.73,139.7,7.1581]
[1718885422240,20.0,139.73,139.66,17.8994]
[1718885422241,22.6899,139.74,139.69,7.1584]
[1718885422442,7.1567,139.73,139.68,7.159]
[1718885422640,22.6901,139.74,139.69,7.1586]
[1718885423952,7.1566,139.73,139.68,7.159]
[1718885424451,7.1573,139.72,139.67,7.1596]
[1718885424951,7.1573,139.72,139.68,7.1592]
[1718885425135,7.1571,139.72,139.68,7.1592]
[1718885425738,7.158,139.71,139.64,0.51]
[1718885425944,0.17,139.73,139.65,7.1605]
[1718885426150,65.68,139.73,139.64,7.1608]
[1718885426756,0.17,139.71,139.6,23.321]
[1718885426946,20.34,139.71,139.6,7.1629]
[1718885427260,7.1602,139.67,139.62,7.162]
[1718885427459,15.0202,139.68,139.57,48.3501]
[1718885427666,7.1619,139.63,139.58,7.164]
[1718885427842,7.1619,139.63,139.57,22.4701]
[1718885427843,7.1611,139.65,139.57,22.4701]
[1718885428043,20.0,139.64,139.57,22.4701]
[1718885428763,20.0,139.64,139.6,7.1632]
[1718885429262,27.1612,139.64,139.59,7.1636]
[1718885429765,20.0,139.64,139.57,22.4701]
[1718885429945,7.1619,139.63,139.58,7.1643]
[1718885430466,7.1614,139.64,139.59,7.1637]
[1718885431342,20.0,139.66,139.58,0.17]
[1718885431540,27.16,139.67,139.62,7.1622]
[1718885432143,20.0,139.67,139.6,0.17]
[1718885432346,7.1599,139.67,139.62,7.1622]
[1718885432549,20.0,139.66,139.62,7.1622]
[1718885433046,20.0,139.66,139.63,7.1613]
[1718885433259,20.0,139.67,139.63,7.1613]
[1718885433668,27.1597,139.67,139.63,7.1613]
[1718885433851,20.0,139.67,139.6,7.1631]
[1718885434057,20.0,139.7,139.6,7.1631]
[1718885434273,7.1608,139.65,139.6,7.1631]
[1718885434570,7.1614,139.64,139.59,7.1637]
[1718885434744,7.1605,139.66,139.61,7.1624]
[1718885434947,7.1607,139.65,139.6,7.1629]
[1718885435253,17.8992,139.68,139.57,66.2622]
[1718885435254,7.1613,139.64,139.59,7.1636]
[1718885435767,7.1604,139.66,139.61,7.1626]
[1718885437382,17.8992,139.68,139.59,7.1633]
[1718885437562,20.0,139.67,139.6,7.1632]
[1718885437877,7.1611,139.65,139.6,7.1632]
[1718885438954,7.1603,139.66,139.61,7.1627]
[1718885439158,27.1598,139.67,139.62,7.1621]